Cogmind - Beta 10.2 @@@ ROGUE MODE // 2022.01.12 @ 21:50:01 Player: Jezoensis Result: Self-destructed Performance ------------- Evolutions (2) 1000 Regions Visited (7) 1400 Robots Destroyed (57) 285 Value Destroyed (1209) 1209 Prototype IDs (28) 560 Alien Tech Used (0) 0 Bonus (183) 183 TOTAL SCORE: 4637 Bonus ------- High Alert Combat Kills 30 Follower Combat Kills 110 Aligned with FarCom 300 Friendly Fire -257 Cogmind --------- Core Integrity 527/550 Matter 84/300 Energy 278/280 System Corruption 1% Temperature Cool (269) Movement Treading (185) Ox1 Location -8/Materials Parts ------- > --- POWER (1) -------- Heavy Ion Engine > --- PROPULSION (3) --- Light Treads Armored Treads > --- UTILITY (4) ------ Large Storage Unit Large Storage Unit Terrain Scan Processor Hardened Medium Armor Plating > --- WEAPON (3) ------- Lightning Gun Autogun Autogun > --- INVENTORY (16) --- Light Treads Light Treads Improved Treads Improved Heat Sink High-capacity Storage Unit High-capacity Storage Unit High-capacity Matter Pod (0) Enhanced Optical Array Improved Terrain Scanner Long-range Tractor Beam Supersonic Drone Bay (1/1) Lightning Gun Advanced Beam Cannon Shock Bomb Launcher Missile Launcher Mining Laser Peak State ------------ > --- POWER ------------ Heavy Ion Engine > --- PROPULSION ------- Light Treads Light Treads Armored Treads > --- UTILITY ---------- Large Storage Unit Large Storage Unit Terrain Scan Processor Long-range Tractor Beam > --- WEAPON ----------- Lightning Gun Autogun Autogun > --- INVENTORY -------- Light Treads Light Treads Improved Treads Cooling System High-capacity Storage Unit High-capacity Storage Unit High-capacity Matter Pod Enhanced Optical Array Improved Terrain Scanner Hardened Medium Armor Plating Supersonic Drone Bay Lightning Gun Lightning Gun Advanced Beam Cannon Shock Bomb Launcher Mining Laser [Rating: 27] Favorites ----------- Power Heavy Ion Engine Engine Heavy Ion Engine Propulsion Light Treads Treads Light Treads Utility Large Storage Unit Device Improved Terrain Scanner Storage Large Storage Unit Processor Terrain Scan Processor Hackware Hacking Suite Protection Hardened Medium Armor Plating Weapon Autogun Energy Gun Improved Medium Laser Energy Cannon Advanced Beam Cannon Ballistic Gun Autogun Launcher Grenade Launcher Special Weapon Mining Laser Build | -11 -10 -10 -9 -9 -9 -8 -8 ------- Run | Scr Mat Min Mat Min Exi Min Mat Slots Evolved 4 | . . . 2 . . . 2 Power . | . . . . . . . . Propulsion 1 | . . . 1 . . . . Utility 2 | . . . 1 . . . 1 Weapon 1 | . . . . . . . 1 Parts Attached 82 | 7 9 . 29 . 3 4 30 Power 6 | 1 1 . 3 . 1 . . Engine 6 | 1 1 . 3 . 1 . . Core . | . . . . . . . . Reactor . | . . . . . . . . Propulsion 6 | 2 . . 2 . . 1 1 Treads 6 | 2 . . 2 . . 1 1 Leg . | . . . . . . . . Wheel . | . . . . . . . . Hover . | . . . . . . . . Flight . | . . . . . . . . Utility 38 | 2 4 . 15 . 2 1 14 Device 26 | 1 2 . 13 . . . 10 Storage 9 | 1 2 . 2 . 2 1 1 Processor 1 | . . . . . . . 1 Hackware 1 | . . . . . . . 1 Protection 1 | . . . . . . . 1 Artifact . | . . . . . . . . Weapon 32 | 2 4 . 9 . . 2 15 Energy Gun 14 | 1 1 . 5 . . 1 6 Energy Cannon 1 | . . . 1 . . . . Ballistic Gun 7 | 1 1 . 1 . . . 4 Ballistic Cannon . | . . . . . . . . Launcher 7 | . 2 . 2 . . 1 2 Special Weapon 3 | . . . . . . . 3 Impact Weapon . | . . . . . . . . Slashing Weapon . | . . . . . . . . Piercing Weapon . | . . . . . . . . Special Melee Weapon . | . . . . . . . . Unidentified Prototypes 5 | . . . 4 . . . 1 Parts Lost 5 | . . . 3 . . . 2 Power 1 | . . . 1 . . . . Propulsion 2 | . . . 1 . . . 1 Utility . | . . . . . . . . Weapon 2 | . . . 1 . . . 1 Highest Loss Streak 1 | . . . 1 . . . 1 Average Slot Usage (%) 99 | . 100 100 99 100 100 100 99 Engine 11 | . 14 14 10 11 11 11 9 Treads 30 | . 28 28 33 33 33 33 27 Device 8 | . 5 . 11 11 11 11 7 Storage 21 | . 22 28 22 22 22 22 18 Processor 1 | . . . . . . . 9 Energy Gun 9 | . 11 14 10 11 11 9 4 Ballistic Gun 13 | . 14 14 11 11 11 11 18 Naked Turns . | . . . . . . . . Heaviest Build 63 | 12 26 26 47 47 47 63 54 Greatest Support 60 | 40 40 40 60 60 60 60 60 Greatest Overweight (x) 1 | . . . . . . 1 . Average Overweight (x) . | . . . . . . . . Largest Inventory Capacity 18 | 6 12 12 16 16 16 18 18 Average Capacity 13 | 5 9 12 15 16 16 16 16 Most Carried 17 | 4 12 12 16 16 16 17 16 Average Carried 13 | 2 9 12 14 16 15 15 15 Final Capacity 18 | 6 12 12 16 16 16 18 16 Final Carried 17 | 4 12 12 16 16 16 17 16 Class Distribution -------------------- 68% | Mutant 13% | Skirmisher 12% | Scavenger-Mutant 5% | Scavenger-Skirmisher Dominant Class ---------------- Mutant | -10/Materials Mutant | -10/Mines Mutant | -9/Materials Mutant | -9/Mines Mutant | -9/Exiles Skirmisher | -8/Mines Scavenger-Mutant | -8/Materials Resources | -11 -10 -10 -9 -9 -9 -8 -8 ----------- Run | Scr Mat Min Mat Min Exi Min Mat Matter Collected 1435 | 238 142 120 514 . 39 60 322 Remotely 115 | . . . . . . . 115 Salvage Created 1747 | 188 335 100 795 . . 51 278 Parts 119 | 12 16 5 52 . . 9 25 Haulers Intercepted 4 | . 2 . 1 . . . 1 Recyclers Shooed 4 | . . . . . . . 4 Parts Field Recycled . | . . . . . . . . Retrieved Matter . | . . . . . . . . Parts Self-Destructed . | . . . . . . . . Prevented . | . . . . . . . . Kills | -11 -10 -10 -9 -9 -9 -8 -8 ------- Run | Scr Mat Min Mat Min Exi Min Mat Combat Hostiles Destroyed 32 | . 3 2 16 . . 3 8 Guns 16 | . . 2 11 . . . 3 AOE 16 | . 3 . 5 . . 3 5 Classes Destroyed 9 | 2 4 . 2 . . 1 . Worker 5 | . 2 . 3 . . . . Builder 1 | . . . . . . 1 . Tunneler 5 | 4 . . . . . 1 . Hauler 4 | . 2 . 1 . . . 1 Recycler 2 | 1 1 . . . . . . Watcher 7 | . 2 . 3 . . . 2 Swarmer 13 | . . . 4 . . 3 6 Grunt 14 | . 3 2 8 . . . 1 Sentry 6 | . . . 5 . . . 1 Best Kill Streak 5 | 5 4 2 4 . . 3 4 Combat Bots Only 4 | . 2 2 4 . . 3 3 Max Kills in Single Turn 3 | 1 2 1 2 . . 3 3 Gunslinging 1 | . . . 1 . . . . Exploded 3 | . 1 . 2 . . 3 3 Melee . | . . . . . . . . Uniques/NPCs Destroyed . | . . . . . . . . Combat | -11 -10 -10 -9 -9 -9 -8 -8 -------- Run | Scr Mat Min Mat Min Exi Min Mat Damage Taken 1253 | . 90 41 798 . . 48 276 Core 148 | . 12 14 63 . . 36 23 Absorbed by Shields . | . . . . . . . . Core Remaining (%) 88 | 100 . 89 . . . 75 . Volleys Fired 120 | 9 23 4 47 . . 5 32 Largest 3 | 2 2 2 2 . . 2 3 Hottest 101 | 60 63 63 79 . . 79 101 Shots Fired 235 | 18 41 8 88 . . 8 72 Gun 210 | 18 36 8 82 . . 6 60 Cannon . | . . . . . . . . Launcher 17 | . 5 . 6 . . 2 4 Special 8 | . . . . . . . 8 Kinetic 118 | 9 18 4 41 . . 3 43 Thermal 47 | . . . 36 . . 3 8 Explosive 17 | . 5 . 6 . . 2 4 Electromagnetic 53 | 9 18 4 5 . . . 17 Robot Hit Streak 15 | 8 11 14 15 . . 5 6 Robot Miss Streak 5 | 1 5 . 2 . . 1 5 Penetration Max . | . . . . . . . . Secondary Targets 3 | . . . 2 . . . 1 Max Gunslinging Chain 1 | . . . 1 . . . 1 Shots Hit Robots 139 | 13 27 7 60 . . 5 27 Core Hits 86 | 6 17 4 32 . . 6 21 Critical Hits 1 | . . . 1 . . . . Critical Kills . | . . . . . . . . Critical Parts Destroyed 1 | . . . 1 . . . . Melee Attacks . | . . . . . . . . Impact . | . . . . . . . . Slashing . | . . . . . . . . Piercing . | . . . . . . . . Sneak Attacks . | . . . . . . . . Combat Hostiles . | . . . . . . . . Follow-up Attacks . | . . . . . . . . Damage Inflicted 3736 | 266 754 99 1413 . . 198 1006 Guns 1987 | 187 309 99 906 . . 80 406 Cannons . | . . . . . . . . Explosions 1747 | 79 445 . 505 . . 118 600 Melee . | . . . . . . . . Ramming 2 | . . . 2 . . . . Kinetic 935 | 77 87 48 403 . . 31 289 Thermal 760 | 79 104 . 528 . . 49 . Explosive 1473 | . 341 . 439 . . 118 575 Electromagnetic 566 | 110 222 51 41 . . . 142 Impact . | . . . . . . . . Slashing . | . . . . . . . . Piercing . | . . . . . . . . Highest Corruption 1 | . . . . . . . 1 Average Corruption 1 | . . . . . . . 1 Corruption Purged . | . . . . . . . . Overload Shots . | . . . . . . . . Overflow Damage 57 | 6 7 . 31 . . . 13 Projectiles . | . . . . . . . . Explosions 57 | 6 7 . 31 . . . 13 Melee . | . . . . . . . . Knockbacks . | . . . . . . . . Impact . | . . . . . . . . Kinetic . | . . . . . . . . Secondary . | . . . . . . . . Self-Inflicted Damage 146 | . . . 63 . . 30 53 Shots 7 | . . . 4 . . 1 2 Rammed 2 | . . . 2 . . . . Targets Rammed 2 | . . . 2 . . . . Kicked . | . . . . . . . . Crushed . | . . . . . . . . Highest Temperature 332 | . 70 33 332 . . 34 269 Average Temperature 48 | . 26 19 64 . . 21 64 Received Heat Transfer 363 | . 51 24 261 . . . 27 Effects 1 | . . . 1 . . . . Energy Bleed 1 | . . . 1 . . . . Siege Activations . | . . . . . . . . Robots Corrupted . | . . . . . . . . Combat Hostiles . | . . . . . . . . Parts Fried 1 | . 1 . . . . . . Impact Corruptions . | . . . . . . . . Robots Melted . | . . . . . . . . Combat Hostiles . | . . . . . . . . Parts Melted 1 | . . . 1 . . . . Heat Transferred 1597 | 100 200 . 1186 . . 111 . Parts Sabotaged . | . . . . . . . . Parts Stolen . | . . . . . . . . Parts Stripped . | . . . . . . . . Power Chain Reactions 5 | 2 2 . 1 . . . . Missiles Intercepted . | . . . . . . . . Alert | -11 -10 -10 -9 -9 -9 -8 -8 ------- Run | Scr Mat Min Mat Min Exi Min Mat Peak Influence 460 | 25 145 87 460 179 . 99 280 Initial 179 | . 16 22 33 179 . . 38 Average 132 | 8 75 70 273 179 . 32 108 Maximum Alert Level 2 | . . . 2 . . . 1 Low Security (%) 79 | 100 100 100 33 100 . 100 89 Level 1 16 | . . . 49 . . . 10 Level 2 4 | . . . 16 . . . . Level 3 . | . . . . . . . . Level 4 . | . . . . . . . . Level 5 . | . . . . . . . . High Security . | . . . . . . . . Max Security . | . . . . . . . . Squads Dispatched 5 | . . . 2 . . . 3 Investigation . | . . . . . . . . Extermination . | . . . . . . . . Reinforcement 3 | . . . 2 . . . 1 Assault 1 | . . . . . . . 1 Garrison 1 | . . . . . . . 1 Intercept . | . . . . . . . . Construction Impeded . | . . . . . . . . Haulers Reinforced . | . . . . . . . . Stealth | -11 -10 -10 -9 -9 -9 -8 -8 --------- Run | Scr Mat Min Mat Min Exi Min Mat Distress Signals 2 | . . . 1 . . . 1 Communications Jammed . | . . . . . . . . Distress Signals . | . . . . . . . . Times Spotted 50 | . 7 2 27 . . 3 11 Peak Tracking Total 6 | . 2 2 6 . . 3 5 Tactical Retreats 1 | . . . . . . . 1 Traps | -11 -10 -10 -9 -9 -9 -8 -8 ------- Run | Scr Mat Min Mat Min Exi Min Mat Traps Triggered 1 | . . . . . . . 1 Indirectly . | . . . . . . . . Trap Hack Attempts . | . . . . . . . . Triggered . | . . . . . . . . Disarmed . | . . . . . . . . Reprogrammed . | . . . . . . . . Reused . | . . . . . . . . Traps Extracted . | . . . . . . . . Installed . | . . . . . . . . Triggered 1 | . 1 . . . . . . Machines | -11 -10 -10 -9 -9 -9 -8 -8 ---------- Run | Scr Mat Min Mat Min Exi Min Mat Machines Disabled 3 | . . . . . . . 3 Max in Single Turn 2 | . . . . . . . 2 Garrison Access 1 | . . . . . . . 1 Machines Sabotaged . | . . . . . . . . Garrisons Compromised . | . . . . . . . . Overloaded Fab Kills . | . . . . . . . . Fab Network Shutdowns . | . . . . . . . . Hacking | -11 -10 -10 -9 -9 -9 -8 -8 --------- Run | Scr Mat Min Mat Min Exi Min Mat Machines Accessed 13 | . 5 . 4 . 1 . 3 Terminals 12 | . 5 . 4 . . . 3 Fabricators . | . . . . . . . . Repair Stations . | . . . . . . . . Recycling Units . | . . . . . . . . Scanalyzers . | . . . . . . . . Garrison Access . | . . . . . . . . Total Hacks 39 | . 15 . 13 . 1 . 10 Successful 18 | . 5 . 8 . 1 . 4 Failed 21 | . 10 . 5 . . . 6 Catastrophic 1 | . 1 . . . . . . Database Lockouts . | . . . . . . . . Manual 37 | . 15 . 12 . 1 . 9 Terminals 38 | . 15 . 13 . . . 10 Fabricators . | . . . . . . . . Repair Stations . | . . . . . . . . Recycling Units . | . . . . . . . . Scanalyzers . | . . . . . . . . Garrison Access . | . . . . . . . . Terminal Hacks 8 | . 2 . 4 . 1 . 1 Part Schematic 1 | . 1 . . . . . . Robot Analysis 2 | . . . 2 . . . . Terminal Index 3 | . 1 . 1 . . . 1 Locate Traps 1 | . . . 1 . . . . EX-Prototype ID Bank 1 | . . . . . 1 . . Fabricator Hacks . | . . . . . . . . Repair Station Hacks . | . . . . . . . . Recycling Unit Hacks . | . . . . . . . . Scanalyzer . | . . . . . . . . Garrison Access Hacks . | . . . . . . . . Unauthorized Hacks 10 | . 3 . 4 . . . 3 Terminals 10 | . 3 . 4 . . . 3 Track 4 | . 2 . 1 . . . 1 Botnet 5 | . 1 . 2 . . . 2 Operators 1 | . . . 1 . . . . Fabricators . | . . . . . . . . Repair Stations . | . . . . . . . . Recycling Units . | . . . . . . . . Scanalyzers . | . . . . . . . . Garrison Access . | . . . . . . . . Data Cores Recovered . | . . . . . . . . Used . | . . . . . . . . Hacking Detections 12 | . 5 . 4 . . . 3 Full Trace Events 1 | . 1 . . . . . . Feedback Events . | . . . . . . . . Feedback Blocked . | . . . . . . . . Robot Schematics Acquired . | . . . . . . . . Robots Built . | . . . . . . . . Matter . | . . . . . . . . Time . | . . . . . . . . Total Robot Build Rating . | . . . . . . . . Part Schematics Acquired 1 | . 1 . . . . . . Parts Built . | . . . . . . . . Matter . | . . . . . . . . Time . | . . . . . . . . Total Part Build Rating . | . . . . . . . . Parts Repaired . | . . . . . . . . Time . | . . . . . . . . Parts Recycled . | . . . . . . . . Recycled Matter . | . . . . . . . . Retrieved Matter . | . . . . . . . . Retrieved Components . | . . . . . . . . Parts Scanalyzed . | . . . . . . . . Part Schematics Acquired . | . . . . . . . . Parts Damaged . | . . . . . . . . Bothacking | -11 -10 -10 -9 -9 -9 -8 -8 ------------ Run | Scr Mat Min Mat Min Exi Min Mat Used RIF Installer . | . . . . . . . . Robots Hacked . | . . . . . . . . Non-combat . | . . . . . . . . Combat . | . . . . . . . . Robot Hacks Applied . | . . . . . . . . Relay Couplers Released 3 | . . . . . . . 3 Machine Destruction 3 | . . . . . . . 3 Robots Rewired . | . . . . . . . . Allies Hacked . | . . . . . . . . Hacks Repelled . | . . . . . . . . Allies | -11 -10 -10 -9 -9 -9 -8 -8 -------- Run | Scr Mat Min Mat Min Exi Min Mat Total Allies 3 | . . 3 . . . . . Largest Group 3 | . . 3 3 . . . . Highest-Rated Group 40 | . . 40 40 . . . . Highest-Rated Ally 16 | . . 16 16 . . . . Total Orders . | . . . . . . . . Ally Attacks 21 | . . . 21 . . . . Total Damage 289 | . . . 289 . . . . Kills 5 | . . . 5 . . . . Allies Corrupted . | . . . . . . . . Allies Melted . | . . . . . . . . Intel | -11 -10 -10 -9 -9 -9 -8 -8 ------- Run | Scr Mat Min Mat Min Exi Min Mat Robot Analysis Total 2 | . . . 2 . . . . Derelict Logs Recovered . | . . . . . . . . Drone Launches . | . . . . . . . . Drone Recoveries . | . . . . . . . . Exploration | -11 -10 -10 -9 -9 -9 -8 -8 ------------- Run | Scr Mat Min Mat Min Exi Min Mat Turns Passed 2938 | 90 556 295 701 20 424 246 606 Spaces Moved 1522 | 39 294 176 318 13 261 142 279 Core 13 | 13 . . . . . . . Treads 1509 | 26 294 176 318 13 261 142 279 Legs . | . . . . . . . . Wheels . | . . . . . . . . Hover . | . . . . . . . . Flight . | . . . . . . . . Fastest Speed 50 | 50 160 160 160 160 160 160 160 Average Speed 159 | 123 160 160 160 160 160 160 161 Slowest Speed 180 | 160 160 160 160 160 160 180 163 Overloaded Moves . | . . . . . . . . Propulsion Burnouts . | . . . . . . . . Robots Hopped . | . . . . . . . . Cave-ins Triggered . | . . . . . . . . Exploration Rate (%) 36 | 3 56 53 29 4 65 40 41 Regions Visited 7 Branch Regions 4 Pre-discovered Areas . | . . . . . . . . Known Exits Taken . | . . . . . . . . Unknown Exits Taken 7 | 1 1 1 1 1 1 1 . Scrap Searched 2 | . . 1 . . . 1 . Spaces Dug 8 | . . . . . . . 8 Terrain Destroyed 130 | 6 30 . 39 . . 19 36 Melee . | . . . . . . . . Projectile 8 | . . . . . . . 8 AOE 122 | 6 30 . 39 . . 19 28 Terrain Rammed . | . . . . . . . . Walls Destroyed . | . . . . . . . . Machines Disabled . | . . . . . . . . Actions | -11 -10 -10 -9 -9 -9 -8 -8 --------- Run | Scr Mat Min Mat Min Exi Min Mat Total 1808 | 60 342 182 425 12 271 153 363 Wait 4 | . . 3 . . . . 1 Move 1515 | 38 293 175 317 12 260 141 279 Hop . | . . . . . . . . Pick Up 46 | 6 11 . 15 . 3 2 9 Fast Attach 16 | 5 1 . 6 . . . 4 Attach 13 | 2 1 . 5 . 1 1 3 Detach 2 | . . . 1 . . . 1 Swap 54 | . 7 . 18 . 2 3 24 Drop 36 | . 6 . 14 . 5 1 10 Fire 120 | 9 23 4 47 . . 5 32 Melee . | . . . . . . . . Ram . | . . . . . . . . Kick . | . . . . . . . . Crush 2 | . . . 2 . . . . Escape Stasis . | . . . . . . . . Rewire . | . . . . . . . . Trap . | . . . . . . . . Miscellaneous . | . . . . . . . . Route ------- -11/Scrapyard -10/Materials (discovered 4 exits: *Mat x2 / [*Min x2]) -10/Mines -9/Materials -9/Mines -9/Exiles -8/Mines -8/Materials (discovered 2 exits: [*Fac x2]) History --------- Turn | Location | Event 2 | -11/Scrapyard | Met Revision 17 19 | -11/Scrapyard | Discovered new exit (range 16) 91 | -11/Scrapyard | Entered Materials 183 | -10/Materials | Discovered new exit (range 8) 335 | -10/Materials | Build established: Mutant 482 | -10/Materials | Discovered new exit (range 6) 588 | -10/Materials | Discovered new exit (range 14) 594 | -10/Materials | Discovered new exit (range 9) 647 | -10/Materials | Entered Mines 918 | -10/Mines | Discovered new exit (range 14) 918 | -10/Mines | Assisted by bots powering up and referring to "LRC-V3" 942 | -10/Mines | Entered Materials 942 | -9/Materials | Accompanied by 3 allies 942 | -9/Materials | Evolved 2 slots: Propulsion x1, Utility x1 1537 | -9/Materials | Discovered new exit (range 11) 1643 | -9/Materials | Entered Mines 1656 | -9/Mines | Deemed a non-threat by the Exiles lab entrance 1656 | -9/Mines | Discovered new exit (range 5) 1663 | -9/Mines | Entered Exiles 1702 | -9/Exiles | Met 8R-AWN 1731 | -9/Exiles | Met EX-HEX 1848 | -9/Exiles | Met EX-BIN 1866 | -9/Exiles | Aligned with FarCom system 1867 | -9/Exiles | Given EX-Vault access code 1904 | -9/Exiles | Opened EX-Vault 1913 | -9/Exiles | Found Supersonic Drone Bay 1944 | -9/Exiles | Warned to stay clear of 0b10 Research branches 1991 | -9/Exiles | Met EX-DEC 2075 | -9/Exiles | Discovered new exit (range 10) 2087 | -9/Exiles | Left Exiles lab with Supersonic Drone Bay 2087 | -9/Exiles | Entered Mines 2244 | -8/Mines | Discovered new exit (range 6) 2333 | -8/Mines | Entered Materials 2333 | -8/Materials | Evolved 2 slots: Utility x1, Weapon x1 2516 | -8/Materials | Discovered new exit (range 10) 2772 | -8/Materials | Discovered new exit (range 4) 2939 | -8/Materials | Self-destructed Last Messages --------------- 02902_ R-06 Scavenger collects Lgt. Treads. 02917_ Acquired Missile Launcher. 02919_ S-10 Pest destroyed. 02919_ Destroyed Flight Unit. 02919_ S-10 Pest destroyed. 02920_ R-06 Scavenger collects Aluminum Leg. 02923_ R-06 Scavenger collects Med. Storage Unit. 02926_ R-06 Scavenger collects Hvy. Particle Gun. 02929_ Y-45 Defender emerges from the garrison. 02934_ Destroyed Flight Unit. 02937_ S-10 Pest destroyed. 02937_ Switching to secondary target: Y-45 Defender. 02938_ Neutrino Reactor explodes. 02938_ Lgt. Treads destroyed. 02938_ Destroyed Lgt. Treads. 02938_ ALERT: Garrison Access compromised, dispatching assault squad. 02938_ Garrison Access disabled. 02938_ Relay Coupler [Grunt] tumbles out of Garrison Access. 02938_ Relay Coupler [NC] tumbles out of Garrison Access. 02938_ Relay Coupler [Grunt] tumbles out of Garrison Access. Map ----- +----------------------------------------------------+ | ??## # """ #?#?#????????????????? | | ##?# + """ #?###????????????????? | | #??# # ##???????????????????? | | ??## # """ #????????????????????? | | ???### ### """ #?? ?????????????????? | | ??#?## #?# """ # ? ?????????????????? | | ???#?# #?# #????????????????????? | | ????## #?# #? ??????????????????? | | ??#### #?########????????????????????? | | ###??# # ?? ?? ?????????????????????? | | ?#?### #???????? ????????????????????? | | ?????# #??"??????#??#????????????????? | | ??##?# # """ ""? ?? ?????????????????? | | ????## # ?? ??? #??"?????????????? | | ##?#?# #?? ??? #? # ???????????????? | | ?????# # ? ????? ?????????????????? | | ?###?# #? ???? ? # ??????????????? | | ?? ?# #??#+#??### ##???????????????? | | ?? ? # #### ##### #### ???????????? | | ?? ??# [ ?????????? | | ? ???# ! [* ?????????? | | ? ??+ ##;# # #???????????????? | | ?????# # % ##+#######?#?????????? | | #??? # # % #???????????? | | ?????#### + ????????? | | #????#??# @ #???????????? | | ??#???### % # #???????????? | | ?#??#???# [ #???? #? ?????????? | | ???#????# !Y #???? ? ? #???????????? | | ##?????## " #??? ?????????????????? | | ???#????# "G ! #?? ??? ??????????????? | | ?#??????# "" #???#?????????????????? | | ????##?## #?????????????????????? | | ??????#?########???#??????????????????? | | | | | | | | | | | | | | | | | | | | | | | | | | | | | | | | | +----------------------------------------------------+ Best States ------------- Heat Dissipation 53 Energy Generation 14 Energy Capacity 280 Matter Stores 300 Matter Capacity 300 Sight Range 16 Terrain Scan Range 16 Terrain Scan Density 85 Armor Coverage 225 Evasion (%) 50 Recoil Reduction 3 Offensive Hacking 10 Item Schematics ----------------- Hcp. Storage Unit | -10/Materials | Hacked Robot Schematics ------------------ None Fabricated ------------ Nothing Alien Tech Used ----------------- None Achievements -------------- None Challenges ------------ None Game ------ Seed OverloadCompactBlade Manual? 0 Play Time 00:31:27 Cumulative 477.0 hours Start 2022.01.12 @ 21:21:30 End 2022.01.12 @ 21:50:01 Sessions 1 Manual Loads 0 Difficulty Rogue Special Mode None Game No. 228 Rogue 101 Adventurer 125 Explorer 2 Win Type - Total 41 Types 34/3/2/0/1/0/0/0/1 Lore% 64 Gallery% 85 Achievement% 65 Wizard Run 0 Options --------- ASCII 0 Keyboard 1 Movement Numpad Keybinds 0 Fullscreen 1 Font 36/TerminusFine Map View 76x50 Tactical HUD 1 Map Filters NONE Filters NONE Steam 1 RUN: 9b8d4e4e-17c8-48f9-83d2-f370351170a2